bitfinex/quotes_SOLUSD_20250415
["timestamp","ask_amount","ask_price","bid_price","bid_amount"]
[1744708478367,0.03,132.58,132.57,36.02977584]
[1744708478578,0.03,132.58,132.57,17.38012698]
[1744708480666,0.03,132.58,132.57,7.5431]
[1744708480858,0.03,132.58,132.57,17.38012698]
[1744708481370,0.03,132.58,132.57,9.83702698]
[1744708481572,0.03,132.58,132.56,33.5435]
[1744708481771,0.03,132.58,132.57,9.83702698]
[1744708482253,0.03,132.58,132.56,33.5435]
[1744708482454,0.03,132.58,132.57,9.83702698]
[1744708482658,0.03,132.58,132.56,26.0]
[1744708482866,9.83702698,132.57,132.51,10.74]
[1744708483063,9.83702698,132.55,132.52,30.0]
[1744708483266,9.83702698,132.54,132.5,17.38382698]
[1744708483675,9.83702698,132.55,132.51,9.83702698]
[1744708483885,6.376,132.58,132.54,9.83702698]
[1744708484063,6.376,132.58,132.55,9.83702698]
[1744708484577,6.376,132.58,132.56,9.83702698]
[1744708484964,0.03,132.58,132.57,9.83702698]
[1744708489289,0.03,132.58,132.55,9.83702698]
[1744708490770,9.83702698,132.57,132.53,20.57702698]
[1744708490973,9.83702698,132.57,132.52,17.38272698]
[1744708491496,9.83702698,132.57,132.53,9.83702698]
[1744708491993,17.38062698,132.57,132.53,9.83702698]
[1744708493392,17.38062698,132.57,132.53,17.38242698]
[1744708494186,17.38062698,132.57,132.53,9.83702698]
[1744708494389,0.03,132.58,132.56,9.83702698]
[1744708494586,0.03,132.58,132.57,9.83702698]
[1744708496277,0.03,132.58,132.56,9.83702698]
[1744708496684,0.03,132.58,132.56,17.38062698]
[1744708497292,0.03,132.58,132.57,9.83702698]
[1744708498187,0.03,132.58,132.57,17.38012698]
[1744708499476,17.96392698,132.63,132.57,17.38012698]
[1744708499692,9.83702698,132.62,132.57,17.38012698]
[1744708500698,17.37782698,132.62,132.57,17.38012698]
[1744708501305,9.83702698,132.6,132.56,26.0]
[1744708501491,9.83702698,132.6,132.55,9.83702698]
[1744708501877,9.83702698,132.61,132.56,9.83702698]
[1744708502278,7.5414,132.6,132.54,7.5448]
[1744708502478,7.5414,132.6,132.56,9.83702698]
[1744708502697,16.37812698,132.61,132.56,9.83702698]
[1744708502900,7.5405,132.62,132.58,9.83702698]
[1744708503088,17.37752698,132.62,132.58,9.83702698]
[1744708503802,17.37752698,132.62,132.57,9.83702698]
[1744708503978,17.37752698,132.62,132.57,17.37982698]
[1744708505296,17.96372698,132.63,132.59,9.83702698]
[1744708505695,9.83702698,132.62,132.58,9.83702698]
[1744708505886,9.83702698,132.62,132.57,17.37982698]
[1744708506078,9.83702698,132.62,132.58,9.83702698]
[1744708506597,17.37732698,132.62,132.58,17.37952698]
[1744708507093,17.96382698,132.63,132.59,9.83702698]
[1744708507403,17.96382698,132.63,132.58,17.37952698]
[1744708510905,17.96382698,132.63,132.58,9.83702698]
[1744708511086,9.83702698,132.62,132.57,17.37992698]
[1744708511489,17.96382698,132.63,132.58,9.83702698]
[1744708511686,10.42392698,132.63,132.59,9.83702698]
[1744708512091,17.96372698,132.63,132.59,9.83702698]
[1744708512701,17.96372698,132.63,132.58,9.83702698]
[1744708512902,17.96372698,132.63,132.58,17.37962698]
[1744708514311,0.5869,132.63,132.59,9.83702698]
[1744708514606,0.03,132.64,132.61,9.83702698]
[1744708516194,0.03,132.64,132.6,9.83702698]
[1744708516692,0.03,132.64,132.61,17.37792698]
[1744708517283,0.03,132.64,132.61,7.5409]
[1744708517490,0.03,132.64,132.6,17.37822698]
[1744708517989,0.03,132.64,132.61,9.83702698]
[1744708518411,0.03,132.64,132.61,17.37762698]
[1744708519011,0.03,132.64,132.62,9.83702698]
[1744708520410,0.03,132.64,132.63,9.83702698]
[1744708520705,0.03,132.64,132.63,17.37672698]
[1744708523790,0.03,132.64,132.63,18.94922698]
[1744708524217,0.03,132.69,132.63,18.94922698]
[1744708524399,0.03,132.69,132.66,9.83702698]
[1744708525113,0.03,132.69,132.65,9.83702698]
[1744708525313,17.40342698,132.69,132.64,9.83702698]
[1744708525819,17.40342698,132.69,132.64,17.37592698]
[1744708525999,17.40342698,132.69,132.65,9.83702698]
[1744708526196,7.5664,132.69,132.65,9.83702698]
[1744708526420,9.86702698,132.69,132.65,9.83702698]
[1744708527012,0.03,132.69,132.66,9.83702698]
[1744708527714,31.97777949,132.73,132.7,83.0]
[1744708527917,52.02799412,132.95,132.88,3.91380293]
[1744708528120,235.43249021,133.08,133.03,1.0]
[1744708528319,0.1656412,133.05,133.04,1.0]
[1744708528616,211.88924119,133.07,133.06,27.0]
[1744708528800,211.88924119,133.07,133.06,55.48667584]
[1744708528995,211.88924119,133.07,133.06,36.83702698]
[1744708529202,14.3,133.1,133.06,19.64964886]
[1744708529401,1.5,133.1,133.09,29.48667584]
[1744708529606,1.5,133.1,133.09,55.48667584]
[1744708530001,7.507,133.21,133.12,1.0]
[1744708530210,3.8965312,133.21,133.06,1.0]
[1744708530517,12.78,133.2,133.1,37.45499374]
[1744708530714,27.8458,133.25,133.14,1.0]
[1744708530715,9.83702698,133.18,133.14,1.0]
[1744708530917,9.83702698,133.17,133.12,38.38392446]
[1744708531117,12.78,133.16,133.12,38.38392446]
[1744708531328,1.6175,133.34,133.21,1.0]
[1744708531506,1.6175,133.34,133.25,15.56697662]
[1744708531507,13.5,133.3,133.25,15.56697662]
[1744708531707,15.56697662,133.33,133.27,1.0]
[1744708531913,9.1173,133.34,133.26,16.56697662]
[1744708532123,9.1173,133.34,133.27,44.63057905]
[1744708532124,13.5,133.3,133.27,44.63057905]
[1744708532311,13.5,133.29,133.27,44.63057905]
[1744708532614,1.6175,133.34,133.28,5.35518978]
[1744708532815,13.5,133.3,133.28,5.35518978]
[1744708533105,13.5,133.29,133.28,5.35518978]
[1744708533503,13.5,133.29,133.28,1.0]
[1744708533916,2.6047579,133.31,133.28,22.94520433]
[1744708534117,16.1047579,133.31,133.29,1.0]
[1744708534516,13.5,133.3,133.29,1.0]
[1744708534711,2.6047579,133.31,133.27,44.63057905]
[1744708534914,13.5,133.3,133.27,44.63057905]
[1744708535116,13.5,133.29,133.27,44.63057905]
[1744708535629,13.5,133.29,133.28,21.90446495]
[1744708535807,13.5,133.29,133.28,22.90446495]
[1744708536419,13.5,133.29,133.28,1.0]
[1744708537021,36.44520433,133.29,133.26,21.90446495]
[1744708537238,22.94520433,133.27,133.26,21.90446495]
[1744708537616,13.48,133.27,133.26,22.90446495]
[1744708537816,13.48,133.27,133.26,10.9174668]
[1744708538232,2.6047579,133.31,133.28,1.0]
[1744708538434,2.6047579,133.31,133.26,10.9174668]
[1744708538435,13.48,133.3,133.26,11.9174668]
[1744708538612,2.6047579,133.31,133.28,1.0]
[1744708538817,2.6047579,133.31,133.29,1.0]
[1744708539152,2.6047579,133.31,133.3,1.0]
[1744708539307,2.6047579,133.31,133.3,23.94520433]
[1744708539512,2.6047579,133.31,133.3,1.0]
[1744708539825,36.42520433,133.33,133.31,1.0]
[1744708540030,33.92520433,133.33,133.31,1.0]
[1744708540337,32.45278906,133.33,133.3,1.0]
[1744708540536,32.45278906,133.33,133.31,1.0]
[1744708540727,0.52013508,133.33,133.28,1.0]
[1744708540933,22.94520433,133.3,133.29,1.0]
[1744708541242,22.94520433,133.31,133.27,1.0]
[1744708541542,22.94520433,133.3,133.27,1.0]
[1744708541719,8.02033508,133.33,133.29,1.0]
[1744708541913,13.46,133.39,133.34,1.0]
[1744708542114,22.97520433,133.37,133.34,1.0]
[1744708542440,49.20920433,133.42,133.31,22.94520433]
[1744708542441,22.94520433,133.36,133.33,1.0]
[1744708542821,22.94520433,133.36,133.34,1.0]
[1744708543016,22.94520433,133.37,133.35,1.0]
[1744708543211,244.260231,133.45,133.29,18.64964886]
[1744708543212,241.760231,133.45,133.38,1.0]
[1744708543411,22.94520433,133.41,133.37,1.0]
[1744708543826,22.94520433,133.4,133.38,1.0]
[1744708544010,20.44520433,133.4,133.38,1.0]
[1744708544216,20.954,133.44,133.39,1.0]
[1744708544423,22.94520433,133.41,133.38,1.0]
[1744708545419,22.94520433,133.4,133.38,1.0]
[1744708545825,22.94520433,133.39,133.33,1.0]
[1744708546011,22.94520433,133.37,133.33,1.0]
[1744708546217,36.40520433,133.38,133.33,23.94520433]
[1744708546624,36.40520433,133.38,133.36,1.0]
[1744708546816,36.40520433,133.38,133.34,1.0]
[1744708547008,36.40520433,133.38,133.36,1.0]
[1744708547411,36.40520433,133.38,133.34,1.0]
[1744708547728,22.94520433,133.36,133.34,1.0]
[1744708547924,7.4974,133.38,133.33,1.0]
[1744708548122,22.94520433,133.35,133.33,1.0]
[1744708548430,22.94520433,133.35,133.34,1.0]
[1744708548632,13.46,133.37,133.33,1.0]
[1744708548820,22.94520433,133.35,133.33,1.0]
[1744708549021,13.46,133.37,133.34,1.0]
[1744708549218,13.46,133.37,133.35,1.0]
[1744708549423,13.46,133.37,133.36,1.0]
[1744708549621,30.44190433,133.4,133.36,1.0]
[1744708550225,30.44190433,133.4,133.35,1.0]
[1744708550427,22.94520433,133.39,133.36,1.0]
[1744708550644,30.44190433,133.4,133.37,1.0]
[1744708551032,7.4967,133.4,133.38,1.0]
[1744708551236,7.4967,133.4,133.37,1.0]
[1744708551428,43.93090433,133.41,133.37,1.0]
[1744708552835,20.9657,133.41,133.37,1.0]
[1744708553151,22.94520433,133.4,133.37,1.0]
[1744708553439,22.94520433,133.38,133.34,23.94520433]
[1744708553648,22.94520433,133.38,133.34,1.0]
[1744708553828,22.94520433,133.38,133.33,23.94520433]
[1744708554026,22.94520433,133.38,133.35,1.0]
[1744708554626,22.94520433,133.39,133.36,1.0]
[1744708555543,7.4968,133.39,133.36,1.0]
[1744708556040,7.4968,133.39,133.35,1.0]
[1744708556240,7.4968,133.39,133.36,1.0]
[1744708556746,13.47,133.41,133.38,1.0]
[1744708557534,15.50802806,133.42,133.38,1.0]
[1744708558228,15.50802806,133.4,133.37,1.0]
[1744708558842,15.50802806,133.38,133.36,1.0]
[1744708559355,15.50802806,133.38,133.33,15.50802806]
[1744708559654,23.00592806,133.37,133.32,99.50802806]
[1744708559845,23.00592806,133.37,133.34,1.0]
[1744708560171,15.50802806,133.36,133.33,1.0]
[1744708560533,15.50802806,133.35,133.3,15.50802806]
[1744708560854,15.50802806,133.33,133.28,16.50802806]
[1744708561059,15.50802806,133.32,133.27,1.0]
[1744708561240,76.6923,133.37,133.29,15.50802806]
[1744708561557,7.5001,133.33,133.29,15.50802806]
[1744708561841,7.5001,133.33,133.28,1.0]
[1744708561842,15.50802806,133.32,133.28,1.0]
[1744708562547,41.75852806,133.33,133.28,16.50802806]
[1744708562743,7.5001,133.33,133.3,1.0]
[1744708563138,7.5001,133.33,133.31,15.50802806]
[1744708563342,7.499,133.35,133.31,16.50802806]
[1744708563544,23.00702806,133.35,133.31,16.50802806]
[1744708563730,26.2447,133.36,133.31,1.0]
[1744708563924,15.50802806,133.34,133.31,1.0]
[1744708564327,15.50802806,133.32,133.28,16.50802806]
[1744708564527,15.50802806,133.33,133.29,1.0]
[1744708564740,15.50802806,133.34,133.29,16.50802806]
[1744708565150,15.50802806,133.34,133.29,15.50802806]
[1744708565357,15.50802806,133.34,133.29,16.50802806]
[1744708566052,7.5001,133.33,133.29,16.50802806]
[1744708566430,15.50802806,133.32,133.28,1.0]
[1744708566636,15.50802806,133.31,133.28,1.0]
[1744708566835,15.50802806,133.31,133.27,1.0]
[1744708567035,26.2505,133.33,133.28,1.0]
[1744708567257,41.75852806,133.33,133.28,16.50802806]
[1744708567645,26.2505,133.33,133.28,16.50802806]
[1744708567866,41.75852806,133.33,133.28,1.0]
[1744708568150,15.50802806,133.32,133.26,98.57102806]
[1744708568355,41.75662806,133.34,133.29,1.0]
[1744708568537,41.75662806,133.34,133.29,16.50802806]
[1744708568737,15.50802806,133.33,133.28,1.0]
[1744708568937,15.50802806,133.32,133.26,98.57102806]
[1744708570154,7.5013,133.31,133.26,98.57102806]
[1744708570537,7.5013,133.31,133.27,2.34703728]
[1744708570744,41.76252806,133.31,133.27,2.34703728]
[1744708570943,2.71599814,133.3,133.27,2.34703728]
[1744708571152,2.71599814,133.3,133.28,15.50802806]
[1744708571435,7.5013,133.31,133.29,1.0]
[1744708572154,23.00872806,133.32,133.29,1.0]
[1744708572346,2.73608603,133.3,133.28,1.0]
[1744708573141,26.2525,133.32,133.29,5.09734171]
[1744708573338,41.76052806,133.32,133.29,5.09734171]
[1744708573543,15.50802806,133.31,133.29,5.09734171]
[1744708573955,5.55148332,133.3,133.27,1.0]
[1744708574256,7.5024,133.29,133.27,1.0]
[1744708574455,13.05358332,133.3,133.28,15.50802806]
[1744708574670,13.05358332,133.3,133.27,16.50802806]
[1744708574864,7.5021,133.3,133.28,5.12489409]
[1744708575935,2.78361184,133.29,133.28,2.40454948]
[1744708576153,15.50802806,133.31,133.28,2.40454948]
[1744708576361,15.50802806,133.3,133.29,5.14128899]
[1744708576553,2.37867518,133.3,133.29,5.14128899]
[1744708576739,2.37867518,133.3,133.29,2.72903211]
[1744708576935,2.37867518,133.3,133.29,3.211e-05]
[1744708577542,7.06609328,133.31,133.29,3.211e-05]
[1744708577840,15.50802806,133.3,133.29,3.211e-05]
[1744708578051,7.06609328,133.31,133.29,3.211e-05]
[1744708578260,15.50802806,133.3,133.25,15.50802806]
[1744708578453,23.01042806,133.29,133.24,15.50802806]
[1744708579438,26.2584,133.29,133.25,15.50802806]
[1744708579644,7.5024,133.29,133.25,15.50802806]
[1744708580056,7.5024,133.29,133.26,15.50802806]
[1744708580251,7.5024,133.29,133.25,15.50802806]
[1744708580642,7.5024,133.29,133.22,18.64964886]
[1744708580946,12.95964611,133.32,133.28,15.50802806]
[1744708581143,12.95964611,133.32,133.27,15.50802806]
[1744708581650,28.46767417,133.32,133.26,15.50802806]
[1744708581963,15.50802806,133.31,133.26,15.50802806]
[1744708582573,28.46767417,133.32,133.26,15.50802806]
[1744708582864,7.5013,133.31,133.26,15.50802806]
[1744708583169,15.50802806,133.29,133.24,15.50802806]
[1744708583344,80.94719373,133.3,133.24,15.50802806]
[1744708583952,7.5024,133.29,133.25,15.50802806]
[1744708584360,7.5024,133.29,133.26,15.50802806]
[1744708584562,7.5024,133.29,133.27,15.50802806]
[1744708584946,7.5024,133.29,133.26,15.50802806]
[1744708585371,5.16180926,133.28,133.27,15.50802806]
[1744708586158,5.16180926,133.28,133.26,15.50802806]
[1744708587174,7.5027,133.29,133.26,15.50802806]
[1744708587680,15.50802806,133.27,133.2,0.063]
[1744708587859,15.50802806,133.23,133.2,0.063]
[1744708588069,23.01472806,133.22,133.2,0.063]
[1744708588268,7.5064,133.22,133.2,0.063]
[1744708588570,7.5059,133.23,133.2,0.063]
[1744708588779,23.01392806,133.23,133.2,0.063]
[1744708589180,15.50802806,133.21,133.2,0.063]
[1744708589774,26.2704,133.23,133.2,0.063]
[1744708589975,15.50802806,133.22,133.2,0.063]
[1744708590185,7.5069,133.21,133.2,0.063]
[1744708590962,23.01492806,133.21,133.2,0.063]
[1744708591394,23.01492806,133.21,133.19,0.063]
[1744708591684,15.50802806,133.2,133.19,0.063]
[1744708591883,15.50802806,133.2,133.19,0.0001]
[1744708592270,23.01552806,133.2,133.19,0.0001]
[1744708592667,41.78422806,133.2,133.17,0.0001]
[1744708592867,15.50802806,133.18,133.17,0.0001]
[1744708593076,7.5075,133.2,133.17,15.50812806]
[1744708593266,7.5075,133.2,133.19,15.50802806]
[1744708593461,7.5075,133.2,133.18,15.50802806]
[1744708593662,7.5075,133.2,133.17,15.50812806]
[1744708594274,26.2754,133.21,133.17,15.50812806]
[1744708594887,2.77991325,133.2,133.17,0.0001]
[1744708595468,18.28794131,133.2,133.17,0.0001]
[1744708595682,15.50802806,133.19,133.17,0.0001]
[1744708596087,2.77991325,133.18,133.17,0.0001]
[1744708596291,10.28851325,133.18,133.17,0.0001]
[1744708596580,2.77991325,133.18,133.17,15.50812806]
[1744708596982,7.5077,133.2,133.17,15.50812806]
[1744708597181,7.5077,133.2,133.19,15.50802806]
[1744708597990,10.28688546,133.2,133.19,15.50802806]
[1744708598791,10.28688546,133.2,133.17,0.0001]
[1744708598989,10.28688546,133.2,133.18,15.50802806]
[1744708599368,7.5077,133.2,133.18,15.50802806]
[1744708599578,7.5063,133.22,133.19,15.50802806]
[1744708599765,7.5063,133.22,133.2,15.50802806]
[1744708599970,7.5063,133.22,133.19,15.50802806]
[1744708600390,2.77933878,133.21,133.19,15.50802806]
[1744708600589,2.77933878,133.21,133.17,0.0001]
[1744708600590,18.28736684,133.21,133.17,0.0001]
[1744708600887,15.50802806,133.2,133.17,0.0001]
[1744708601186,15.50802806,133.18,133.17,0.0001]
[1744708601589,28.00802806,133.18,133.17,0.0001]
[1744708601886,15.27933878,133.18,133.17,0.0001]
[1744708602087,38.29596684,133.18,133.17,0.0001]
[1744708603500,22.78793878,133.18,133.17,0.0001]
[1744708605569,10.28793878,133.18,133.17,0.0001]
[1744708605891,2.77933878,133.18,133.17,15.50812806]
[1744708606073,7.5081,133.19,133.17,15.50812806]
[1744708606273,7.5081,133.19,133.18,15.50802806]
[1744708606985,10.28833608,133.19,133.18,15.50802806]
[1744708609393,2.78023608,133.19,133.18,15.50802806]
[1744708609777,2.78023608,133.19,133.18,23.01662806]
[1744708610184,2.78023608,133.19,133.18,41.66627692]
[1744708610382,7.5035,133.27,133.24,15.50802806]
[1744708610584,26.2624,133.27,133.23,15.50802806]
[1744708610878,23.01152806,133.27,133.23,15.50802806]
[1744708611078,23.01152806,133.27,133.22,15.50802806]
[1744708611280,15.50802806,133.26,133.21,15.50802806]
[1744708612193,7.5046,133.25,133.21,15.50802806]
[1744708612495,15.50802806,133.24,133.2,15.50802806]
[1744708613587,41.77432806,133.25,133.2,15.50802806]
[1744708613897,26.2663,133.25,133.2,15.50802806]
[1744708614078,7.5046,133.25,133.21,15.50802806]
[1744708614279,15.50802806,133.24,133.2,15.50802806]
[1744708614495,15.50802806,133.23,133.17,0.0001]
[1744708614676,15.50802806,133.22,133.17,15.50812806]
[1744708614875,12.02,133.23,133.17,0.0001]
[1744708615099,15.50802806,133.19,133.17,0.0001]
[1744708615589,15.50802806,133.2,133.17,0.0001]
[1744708615796,12.02,133.23,133.17,0.0001]
[1744708615998,15.50802806,133.2,133.17,0.0001]
[1744708616206,7.508,133.19,133.17,0.0001]
[1744708616492,23.01602806,133.19,133.17,0.0001]
[1744708616890,7.508,133.19,133.17,0.0001]
[1744708617303,23.01602806,133.19,133.17,0.0001]
[1744708617504,15.50802806,133.18,133.17,0.0001]
[1744708618398,23.01662806,133.18,133.17,0.0001]
[1744708618806,35.03662806,133.18,133.17,0.0001]
[1744708620403,76.35627692,133.18,133.14,0.063]
[1744708620599,15.50802806,133.15,133.14,0.063]
[1744708621787,15.50802806,133.15,133.13,0.063]
[1744708622009,32.64735612,133.14,133.13,0.063]
[1744708622394,35.43542441,133.14,133.13,0.063]
[1744708623806,15.50802806,133.12,133.11,0.063]
[1744708624007,27.52802806,133.12,133.11,0.063]
[1744708624192,30.31609635,133.12,133.11,0.063]
[1744708625089,56.01934521,133.12,133.08,0.063]
[1744708625292,15.50802806,133.09,133.08,0.063]
[1744708626207,18.29609635,133.09,133.08,0.063]
[1744708626610,2.78806829,133.09,133.08,0.063]
[1744708627204,2.78806829,133.09,133.08,15.57102806]
[1744708627994,12.04,133.15,133.08,15.57102806]
[1744708628194,12.04,133.15,133.12,15.50802806]
[1744708628406,249.74802806,133.18,133.13,15.50802806]
[1744708628794,2.78161516,133.17,133.13,15.50802806]
[1744708628994,2.78161516,133.17,133.14,15.50802806]
[1744708629195,2.78161516,133.17,133.13,15.50802806]
[1744708629689,2.78161516,133.16,133.13,15.50802806]
[1744708630513,2.78161516,133.16,133.15,15.50802806]
[1744708631096,15.50802806,133.21,133.15,15.50802806]
[1744708631413,12.04,133.22,133.18,15.50802806]
[1744708631596,12.04,133.22,133.19,15.50802806]
[1744708631800,2.78444442,133.21,133.19,15.50802806]
[1744708632491,23.40982805,133.27,133.22,18.64964886]
[1744708632696,65.46916567,133.32,133.26,31.01605612]
[1744708632897,65.46916567,133.32,133.31,15.50802806]
[1744708633708,65.46916567,133.32,133.28,27.54802806]
[1744708633899,0.03,133.32,133.31,15.50802806]
[1744708634834,0.03,133.32,133.31,23.00932806]
[1744708635198,0.03,133.32,133.31,30.42265359]
[1744708635702,0.03,133.32,133.28,22.92135359]
[1744708635909,0.03,133.32,133.31,22.92135359]
[1744708636821,0.03,133.32,133.31,30.42265359]
[1744708642227,0.03,133.32,133.31,7.5013]
[1744708642426,0.03,133.32,133.31,30.42265359]
[1744708643334,0.03,133.32,133.31,22.92135359]
[1744708643629,0.03,133.32,133.31,30.42265359]
[1744708643807,0.03,133.32,133.31,22.92135359]
[1744708645038,0.03,133.32,133.31,30.42265359]
[1744708646237,0.03,133.32,133.31,22.92135359]
[1744708646647,0.03,133.32,133.3,7.5016]
[1744708646843,0.03,133.32,133.3,30.42295359]
[1744708647156,0.03,133.32,133.31,22.92135359]
[1744708647529,0.03,133.32,133.31,30.42265359]
[1744708647930,0.03,133.32,133.28,30.42385359]
[1744708648130,22.95135359,133.32,133.28,7.5025]
[1744708648332,22.95135359,133.32,133.28,30.42385359]
[1744708648539,22.95135359,133.32,133.28,7.5025]
[1744708648743,22.95135359,133.32,133.28,30.42385359]
[1744708649235,22.95135359,133.32,133.28,7.5025]
[1744708649434,22.92135359,133.3,133.23,18.7644]
[1744708649733,22.92135359,133.26,133.21,22.92135359]
[1744708649937,22.92135359,133.27,133.23,0.063]
[1744708650126,22.92135359,133.27,133.23,22.98435359]
[1744708650535,22.92135359,133.27,133.23,0.063]
[1744708650764,22.92135359,133.26,133.23,0.063]
[1744708651136,7.5018,133.3,133.23,22.98435359]
[1744708651345,22.92135359,133.28,133.23,22.98435359]
[1744708651838,22.92135359,133.27,133.23,0.063]
[1744708652027,22.92135359,133.25,133.23,0.063]
[1744708652527,11.82,133.26,133.23,22.98435359]
[1744708652728,11.82,133.26,133.24,22.92135359]
[1744708653155,26.2564,133.3,133.23,7.5687]
[1744708653156,7.5018,133.3,133.25,30.42555359]
[1744708653319,11.82,133.31,133.28,22.92135359]
[1744708653526,11.82,133.31,133.29,22.92135359]
[1744708653723,11.82,133.31,133.28,22.92135359]
[1744708653951,11.82,133.31,133.25,26.2659]
[1744708654152,11.82,133.31,133.28,22.92135359]
[1744708654541,11.82,133.31,133.3,22.92135359]
[1744708655133,11.82,133.31,133.29,22.92135359]
[1744708655531,0.03,133.32,133.3,22.92135359]
[1744708655736,0.03,133.32,133.31,22.92135359]
[1744708655930,0.03,133.32,133.3,22.92135359]
[1744708656258,0.03,133.32,133.29,22.92135359]
[1744708656844,0.03,133.32,133.3,22.92135359]
[1744708657041,7.531,133.32,133.24,26.2683]
[1744708657356,23.06050606,133.32,133.27,15.52950606]
[1744708658136,15.52950606,133.31,133.26,15.52950606]
[1744708658338,15.52950606,133.3,133.26,15.52950606]
[1744708658546,15.52950606,133.3,133.25,15.52950606]
[1744708658952,15.52950606,133.31,133.26,15.52950606]
[1744708659354,7.5018,133.3,133.26,15.52950606]
[1744708660650,7.5015,133.31,133.27,15.52950606]
[1744708661026,15.52950606,133.3,133.25,15.52950606]
[1744708661449,15.52950606,133.29,133.25,15.52950606]
[1744708661648,26.2564,133.3,133.25,15.52950606]
[1744708661840,41.78590606,133.3,133.25,15.52950606]
[1744708662042,15.52950606,133.29,133.25,15.52950606]
[1744708662441,41.78590606,133.3,133.25,15.52950606]
[1744708662843,15.52950606,133.29,133.25,15.52950606]
[1744708663757,15.52950606,133.31,133.26,15.52950606]
[1744708664146,26.2825,133.32,133.26,15.52950606]
[1744708664443,15.52950606,133.3,133.23,0.063]
[1744708664639,15.52950606,133.3,133.25,15.52950606]
[1744708665036,7.5024,133.29,133.25,15.52950606]
[1744708666353,7.5024,133.29,133.26,15.52950606]
[1744708666756,15.52950606,133.28,133.23,0.063]
[1744708666934,15.52950606,133.28,133.23,15.59250606]
[1744708668263,48.8025,133.32,133.23,15.59250606]
[1744708668475,15.52950606,133.29,133.24,15.52950606]
[1744708668971,7.503,133.28,133.24,15.52950606]
[1744708670762,18.943,133.28,133.24,15.52950606]
[1744708671471,34.47250606,133.28,133.24,15.52950606]
[1744708672369,15.52950606,133.25,133.23,0.063]
[1744708672575,15.52950606,133.24,133.23,0.063]
[1744708673067,15.52950606,133.25,133.23,0.063]
[1744708673459,15.52950606,133.26,133.23,0.063]
[1744708673658,15.52950606,133.25,133.23,0.063]
[1744708674075,15.52950606,133.24,133.23,0.063]
[1744708674273,15.52950606,133.26,133.23,0.063]
[1744708674949,15.52950606,133.25,133.23,0.063]
[1744708675679,7.5052,133.24,133.23,0.063]
[1744708677474,7.5049,133.25,133.23,0.063]
[1744708678281,15.52950606,133.24,133.23,0.063]
[1744708679278,15.52950606,133.24,133.21,0.063]
[1744708679279,56.69915492,133.24,133.21,0.063]
[1744708679452,15.52950606,133.22,133.21,0.063]
[1744708680053,23.03580606,133.22,133.21,0.063]
[1744708681377,45.55580606,133.22,133.21,0.063]
[1744708681573,23.03580606,133.22,133.21,0.063]
[1744708682578,82.97135492,133.22,133.17,0.063]
[1744708682784,15.52950606,133.19,133.17,0.063]
[1744708683082,18.7659,133.22,133.17,15.59250606]
[1744708683488,34.29540606,133.22,133.17,15.59250606]
[1744708683788,7.5069,133.21,133.18,15.52950606]
[1744708684190,7.5064,133.22,133.2,15.52950606]
[1744708684398,11.44,133.23,133.21,15.52950606]
[1744708684579,18.9458,133.23,133.22,15.52950606]
[1744708684906,18.9458,133.23,133.21,15.52950606]
[1744708685381,34.47530606,133.23,133.18,15.52950606]
[1744708685587,53.23980606,133.23,133.18,15.52950606]
[1744708686771,37.7103,133.23,133.18,15.52950606]
[1744708686982,11.44,133.23,133.2,15.52950606]
[1744708687193,18.946,133.23,133.2,15.52950606]
[1744708687389,34.47550606,133.23,133.17,26.063]
[1744708687687,34.47550606,133.23,133.18,15.52950606]
[1744708688093,18.9459,133.23,133.21,15.52950606]
[1744708688291,18.9459,133.23,133.2,15.52950606]
[1744708688996,34.47540606,133.23,133.18,15.52950606]
[1744708689186,9.72201124,133.22,133.17,9.78501124]
[1744708689789,28.66791124,133.23,133.19,9.72201124]
[1744708689994,7.5059,133.23,133.2,9.72201124]
[1744708690197,18.9454,133.24,133.21,9.72201124]
[1744708690989,18.9454,133.24,133.2,9.72201124]
[1744708691180,7.5054,133.24,133.2,9.72201124]
[1744708691778,30.42891124,133.25,133.2,9.72201124]